Body,Body Name,Date,Transaction Number,Amount,Supplier Name,Supplier ID,Expense Area,Expense Type,Expense Code,Extended Description,Service Code,Service Label,Service Division Label,Service Division Code
http://statistics.data.gov.uk/id/local-authority/16UF,Eden District Council,09/09/2016,152491,2049.19,AMEY PLC,TFE001,Technical Services Manager,Street Cleaning Contract,3100,SC38,STRCLE,Street Cleaning,02248,Fly tipping on verge
http://statistics.data.gov.uk/id/local-authority/16UF,Eden District Council,09/09/2016,152577,1340,CIPFA,CIP001,Financial Services Manager,Subscriptions & levies,2078,FINANCE ADVISORY NETWORK AUG16/MAR17,FINSER,Financial Services,00101,Financial Services
http://statistics.data.gov.uk/id/local-authority/16UF,Eden District Council,16/09/2016,152709,2185.96,GLASDON UK LTD,GLA003,Technical Services Manager,Litter bins,2022,BLACK BINS,PROAME,Provision of Ameneties,02252,Provision of Amenities
http://statistics.data.gov.uk/id/local-authority/16UF,Eden District Council,16/09/2016,152725,1516,HUTCHINSON ENVIRONMENTAL SOLUTIONS LTD,HUT003,Legal Services Manager,Building Maintenance,1000,INSTALL CONTROL PANEL AND PUMP,INDEST,Industrial Estates,02022,Alston Station Yard
http://statistics.data.gov.uk/id/local-authority/16UF,Eden District Council,16/09/2016,152435,548.24,NICOLETTE JENKINS,JEN009,Commercial Services Manager,Promotional activity,2084,MARKET BARROW SIGNS,MARKET,Markets,02382,Mrkts - Penrith Promotional Space
http://statistics.data.gov.uk/id/local-authority/16UF,Eden District Council,16/09/2016,152306,4155.88,NORTHGATE PUBLIC SERVICES (UK) LTD,NOR042,Revenue/Benefits Manager,Software � maintenance,2067,PARIS CORE SYSTEM SUPPORT UPLIFT,REVBEN,Revenue & Benefits,00106,Revenues
http://statistics.data.gov.uk/id/local-authority/16UF,Eden District Council,16/09/2016,152350,819.91,NORTHGATE PUBLIC SERVICES (UK LTD,NOR009,Revenue/Benefits Manager,Software � maintenance,2067,PARIS CVC & APACS SECURITY,REVBEN,Revenue & Benefits,00106,Revenues
http://statistics.data.gov.uk/id/local-authority/16UF,Eden District Council,16/09/2016,152433,6890,ENTERPRISE PROSPECTS LTD,ENT004,Chief Executive's,Agency Staff,0003,ROBIN HOOPER AUGUST 2016,CHIEXE,Chief Executive,00050,Chief Executive
http://statistics.data.gov.uk/id/local-authority/16UF,Eden District Council,16/09/2016,152468,7118.14,ZURICH INSURANCE COMPANY,ZUR001,Financial Services Manager,Insurance,2085,INSURANCE POLICY EI-08H073-0097,INSURA,Insurance,01098,Insurance
http://statistics.data.gov.uk/id/local-authority/16UF,Eden District Council,16/09/2016,152580,1834,Redacted Information,SOW010,Director of Finance,Grants and contributions,2079,PLFR GRANT EDC16089,FLOOD,Flood Dec 2015,09318,Flood Dec 2015
http://statistics.data.gov.uk/id/local-authority/16UF,Eden District Council,16/09/2016,152593,3314.23,AMEY PLC,TFE001,Technical Services Manager,GM External Contractors,1080,GM91,CEMETE,Cemeteries,02239,Alston Cemetery Store
http://statistics.data.gov.uk/id/local-authority/16UF,Eden District Council,16/09/2016,152595,58930.34,SOUTH LAKELAND DISTRICT COUNCIL,SOU006,Information Technology Manager,Shared IT Services,2500,IT SHARED SERVICES QTR 1 2016-17,INFTEC,Information Technology,00102,Information Technology
http://statistics.data.gov.uk/id/local-authority/16UF,Eden District Council,16/09/2016,152600,1392.44,HEATONS OFFICE SOLUTIONS LTD,LAK004,Technical Services Manager,Equipment � purchase,2000,STATIONERY/FURNITURE/PAPER,CENTRA,Central Expenses,00212,Health & Safety
http://statistics.data.gov.uk/id/local-authority/16UF,Eden District Council,16/09/2016,152602,1529.14,AMEY PLC,TFE001,Technical Services Manager,RC WEEE,3008,RC43,REFCOL,Refuse Collection,03049,Refuse Collection Domestic
http://statistics.data.gov.uk/id/local-authority/16UF,Eden District Council,16/09/2016,152667,3135,M TAYLOR ASSOCIATES LTD,TAY017,Human Resources Manager,Professional fees,2045,AUGUST 2016,HUMRES,Human Resources,00207,Human Resources
http://statistics.data.gov.uk/id/local-authority/16UF,Eden District Council,16/09/2016,152670,1440,NORTH COUNTRY LEISURE,NCL001,Technical Services Manager,Promotions,2081,HIRE OF ROLLER DISCO EQUIPMENT,ARTLEI,Arts and Leisure,02113,Summer Sports
http://statistics.data.gov.uk/id/local-authority/16UF,Eden District Council,16/09/2016,152671,573.6,NORTH COUNTRY LEISURE,NCL001,Technical Services Manager,Other charges for services,2047,TWO EXTRA PASSES AT CASTLETOWN BY TFE,ARTLEI,Arts and Leisure,02116,Sports leisure develop fund
http://statistics.data.gov.uk/id/local-authority/16UF,Eden District Council,16/09/2016,152672,2640,NORTH COUNTRY LEISURE,NCL001,Technical Services Manager,Other charges for services,2047,WORKS BY TSL-VERTICAL DRAIN PITCHES,ARTLEI,Arts and Leisure,02116,Sports leisure develop fund
http://statistics.data.gov.uk/id/local-authority/16UF,Eden District Council,16/09/2016,152674,1294.08,NORTH COUNTRY LEISURE,NCL001,Technical Services Manager,NCL Ad-hoc Sports Pitches,1155,AD HOC BOOKINGS JUNE/JULY/AUGUST 2016,LEICEN,Eden Leisure Centre & Appleby Swimming P,02130,Sports Facilities
http://statistics.data.gov.uk/id/local-authority/16UF,Eden District Council,16/09/2016,152678,3559.77,CUMBRIA COUNTY COUNCIL,CCC002,Technical Services Manager,Contract parking Service,3004,PARKING SERVICES QTR 4 2015/16,OFFSTR,Vehicle Parking Off Street,02167,Vehicle parking
http://statistics.data.gov.uk/id/local-authority/16UF,Eden District Council,16/09/2016,152679,2817,CUMBRIA COUNTY COUNCIL,CCC002,Technical Services Manager,Contract parking Service,3004,PARKING SERVICES QTR1 2016/17,OFFSTR,Vehicle Parking Off Street,02167,Vehicle parking
http://statistics.data.gov.uk/id/local-authority/16UF,Eden District Council,16/09/2016,152680,2408.33,CARLISLE CITY COUNCIL,CAR015,Planning Services Manager (BC),"Books, publications",2016,SAHRE OF BSI IHS DATABASE FOR CUMBRIA,PLASER,Planning Services,00308,Building Control Services
http://statistics.data.gov.uk/id/local-authority/16UF,Eden District Council,16/09/2016,152685,3672,Redacted Information,THO049,Director of Finance,Grants and contributions,2079,PLFR GRANT EDC16013,FLOOD,Flood Dec 2015,09318,Flood Dec 2015
http://statistics.data.gov.uk/id/local-authority/16UF,Eden District Council,16/09/2016,152686,5000,Redacted Information,HOA003,Director of Finance,Grants and contributions,2079,PLFR GRANT EDC16252,FLOOD,Flood Dec 2016,09318,Flood Dec 2015
http://statistics.data.gov.uk/id/local-authority/16UF,Eden District Council,16/09/2016,152687,5000,Redacted Information,PIC003,Director of Finance,Grants and contributions,2079,PLFR GRANT EDC16171,FLOOD,Flood Dec 2017,09318,Flood Dec 2015
http://statistics.data.gov.uk/id/local-authority/16UF,Eden District Council,16/09/2016,152688,504,Redacted Information,SET004,Director of Finance,Grants and contributions,2079,PLFR GRANT EDC16326,FLOOD,Flood Dec 2018,09318,Flood Dec 2015
http://statistics.data.gov.uk/id/local-authority/16UF,Eden District Council,16/09/2016,152689,2613.6,Redacted Information,ABB005,Director of Finance,Grants and contributions,2079,PLFRG GRANT EDC16083,FLOOD,Flood Dec 2019,09318,Flood Dec 2015
http://statistics.data.gov.uk/id/local-authority/16UF,Eden District Council,16/09/2016,152697,3900,CUMBRIA COUNTY COUNCIL,CCC002,Technical Services Manager,Other charges for services,2047,H&S SUPPORT SERVICE 01.04.16-31.03.16,CENTRA,Central Expenses,00212,Health & Safety
http://statistics.data.gov.uk/id/local-authority/16UF,Eden District Council,16/09/2016,152703,761.27,AMEY PLC,TFE001,Legal Services Manager,Caretaking/security (contract),1003,EDC ADDITIONAL SERVICES,COMMEM,Committee and Member Costs,01078,Servicing Committees
http://statistics.data.gov.uk/id/local-authority/16UF,Eden District Council,16/09/2016,152704,35110.23,CUMBRIA COUNTY COUNCIL,CUM095,Financial Services Manager,Additional Pensions,0030,COST EFFICIENCY RETIREMENT ,CORPOR,Corporate Costs,01094,Additional Pensions
http://statistics.data.gov.uk/id/local-authority/16UF,Eden District Council,16/09/2016,152718,1482.88,ROYAL MAIL NW,ROY001,Legal Services Manager,Postages,2054,RESPONSE PLUS SERVICE,REGELE,Register of Electors,01001,Register of Electors
http://statistics.data.gov.uk/id/local-authority/16UF,Eden District Council,16/09/2016,152736,64262.9,AMEY PLC,TFE001,Technical Services Manager,Contract refuse collection,3003,M-RE54,REFCOL,Refuse Collection,03050,Clinical Expenditure
http://statistics.data.gov.uk/id/local-authority/16UF,Eden District Council,16/09/2016,152737,16837.1,AMEY PLC,TFE001,Environmental Services,Street Cleaning Contract,3100,M-SC54,APFAIR,Appleby Fair,03036,Appleby Fair
http://statistics.data.gov.uk/id/local-authority/16UF,Eden District Council,16/09/2016,152758,2000,NEOPOST LIMITED,NEO001,Corporate Services Manager,Postages,2054,FRANKING MACHINE REFILL,CENTRA,Central Expenses,00205,Postages Town Hall
http://statistics.data.gov.uk/id/local-authority/16UF,Eden District Council,23/09/2016,152782,1224.65,AMEY PLC,TFE001,Technical Services Manager,Planned Maintenance,1016,MISC 53762,ADMBLD,Administrative Buildings,00502,Mansion House
http://statistics.data.gov.uk/id/local-authority/16UF,Eden District Council,23/09/2016,152484,5372,WHITE YOUNG GREEN CONSULTING LTD,WHI002,Technical Services Manager,Balance Sheet entry BS,6003,PENRITH LEISURE CENTRE,LEICEN,Eden Leisure Centre & Appleby Swimming P,10388,Leisure Contract Provision
http://statistics.data.gov.uk/id/local-authority/16UF,Eden District Council,23/09/2016,152487,3210,TWEDDELL & SLATER CONSULTING ENGINEERS,TWE002,Director of Finance,Balance Sheet entry BS,6003,CHARTERED ENGINEER HOURS RIVER BANK REIN,FLOOD,Flood Dec 2018,09318,Flood Dec 2015
http://statistics.data.gov.uk/id/local-authority/16UF,Eden District Council,23/09/2016,152696,4748,IAN CANNON LTD,CAN004,Technical Services Manager,Other charges for services,2047,INSTALL RUNNING TRACK FRENCHFIELD,ARTLEI,Arts and Leisure,02116,Sports leisure develop fund
http://statistics.data.gov.uk/id/local-authority/16UF,Eden District Council,23/09/2016,152054,16716.64,AMEY PLC,TFE001,Technical Services Manager,Building works,5502,NEW STREET LIGHT COLUMNS,FOOLIG,Footway Lighting,06149,Cap Footway Lighting
http://statistics.data.gov.uk/id/local-authority/16UF,Eden District Council,23/09/2016,152328,537.5,OH ACQUISITIONS LIMITED,OHA001,Technical Services Manager,Equipment � purchase,2000,APPOINTMENTS,CENTRA,Central Expenses,00212,Health & Safety
http://statistics.data.gov.uk/id/local-authority/16UF,Eden District Council,23/09/2016,152362,680.42,VOLKSWAGEN GROUP LEASING,VOL003,Environmental Services,Operational leases (Leased car scheme),1502,EXTENSION RENTAL INVOICE,CODOGS,Community Wardens,03044,Community  Warden
http://statistics.data.gov.uk/id/local-authority/16UF,Eden District Council,23/09/2016,152524,9710.62,NORTH COUNTRY LEISURE,NCL001,Financial Services Manager,Balance Sheet entry BS,6003,VALUATION 4 JULY 2016,GFCAP,GF Capital Receipts,10181,GF Capital Receipts
http://statistics.data.gov.uk/id/local-authority/16UF,Eden District Council,23/09/2016,152527,2107.5,CAPITA PROPERTY & INFRASTRUCTURE LTD,CAP002,Planning Services,Professional fees,2045,EDEN ARBORICULTURAL CONSULTANCY AUGUST 16,CONSER,Environmental Enhancement & Conservation,03012,Aboricutural Advice
http://statistics.data.gov.uk/id/local-authority/16UF,Eden District Council,23/09/2016,152574,660,LIS HEATH,HEA015,Human Resources Manager,Welfare,0080,COUNSELLING 12 HOURS VARIOUS DATES,CENTRA,Central Expenses,00209,Welfare
http://statistics.data.gov.uk/id/local-authority/16UF,Eden District Council,23/09/2016,152581,1351.43,SOUTH LAKELAND DISTRICT COUNCIL,SOU006,Communities Director,Promotions,2081, DARLINGTON - ALSTON MOOR,EDEVPR,Economic Development and Promotion,02003,Economic Promotion - BRRS
http://statistics.data.gov.uk/id/local-authority/16UF,Eden District Council,23/09/2016,152587,3171.13,SOUTH LAKELAND DISTRICT COUNCIL,SOU006,Planning Services,Professional fees,2045,CONSERVATION ADVISORY - GRAHAM DARLING,DEVCOE,Development Control & Enforcement,03010,Development Control & Enforcement
http://statistics.data.gov.uk/id/local-authority/16UF,Eden District Council,23/09/2016,152596,1724.4,OYSTER PARTNERSHIP,OYS001,Planning Services,Agency Staff,0003, W/C 22.08.16,PLASER,Planning Services,00304,Planning Services
http://statistics.data.gov.uk/id/local-authority/16UF,Eden District Council,23/09/2016,152666,730,BTS HOLDINGS PLC,BTS001,Information Technology Manager,IT Contracts & Maintenance,2062,SERVICE AGREEMENT BTS COMMS WARE SYSTEM,INFTEC,Information Technology,00102,Information Technology
http://statistics.data.gov.uk/id/local-authority/16UF,Eden District Council,23/09/2016,152673,4335,NORTH COUNTRY LEISURE,NCL001,Technical Services Manager,Other charges for services,2047,WORKS BY TSL/SAND PITCH3/AMENITY AREA,ARTLEI,Arts and Leisure,02116,Sports leisure develop fund
http://statistics.data.gov.uk/id/local-authority/16UF,Eden District Council,23/09/2016,152682,750,CHRIS LIVSEY,LIV003,Legal Services Manager,Planned Maintenance,1016,REBUILD FIELD WALL SOULBY,LANDMA,Land Management,01007,Land Management
http://statistics.data.gov.uk/id/local-authority/16UF,Eden District Council,23/09/2016,152705,20000,THE POLICE & CRIME COMMISSIONER FOR CUMBRIA,THE006,Technical Services Manager,Grants and contributions,2079,SARC FUNDING 2016-17,COMDEV,Community Development & Engagement,01148,Sexual Assault Referral Service
http://statistics.data.gov.uk/id/local-authority/16UF,Eden District Council,23/09/2016,152720,4200,MCDOUGALL BUILDING CONTRACTORS,MCD002,Environmental Services,Capital grants,5505,160005/PENRITH,MEREGR,1996 Mandatory Renovation Grants,06035,Disabled Facility Grants
http://statistics.data.gov.uk/id/local-authority/16UF,Eden District Council,23/09/2016,152732,1413.85,OYSTER PARTNERSHIP,OYS001,Planning Services,Agency Staff,0003, W/C 29/08/16,PLASER,Planning Services,00304,Planning Services
http://statistics.data.gov.uk/id/local-authority/16UF,Eden District Council,23/09/2016,152740,1490.62,PRINT IMAGE NETWORK LTD,PRI011,Legal Services Manager,Printing and stationary,2037,EDEN 2016 CANVAS HEFS,REGELE,Register of Electors,01001,Register of Electors
http://statistics.data.gov.uk/id/local-authority/16UF,Eden District Council,23/09/2016,152767,31469.62,AMEY PLC,TFE001,Technical Services Manager,GM INSPECTIONS & MAINTENANCE,1089,M-GM54,CLCHYD,Closed Church Yards,02246,War Memorials
http://statistics.data.gov.uk/id/local-authority/16UF,Eden District Council,23/09/2016,152773,1007,LAZONBY SWIMMING POOL ASSOCIATION,LAZ003,Technical Services Manager,Grants and contributions,2079,rural pool grant 2016,ARTLEI,Arts and Leisure,02107,Rural pool grants
http://statistics.data.gov.uk/id/local-authority/16UF,Eden District Council,23/09/2016,152774,625,HUNSONBY SWIMMING POOL,HUN003,Technical Services Manager,Grants and contributions,2079,rural pool grant 2016,ARTLEI,Arts and Leisure,02107,Rural pool grants
http://statistics.data.gov.uk/id/local-authority/16UF,Eden District Council,23/09/2016,152775,1059,GREYSTOKE SWIMMING POOL,GRE020,Technical Services Manager,Grants and contributions,2079,rural pool grant 2016,ARTLEI,Arts and Leisure,02107,Rural pool grants
http://statistics.data.gov.uk/id/local-authority/16UF,Eden District Council,23/09/2016,152776,1007,ASKHAM SWIMMING POOL,ASK009,Technical Services Manager,Grants and contributions,2079,rural pool grant 2016,ARTLEI,Arts and Leisure,02107,Rural pool grants
http://statistics.data.gov.uk/id/local-authority/16UF,Eden District Council,23/09/2016,152777,1483,SHAP SWIMMING POOL,SHA011,Technical Services Manager,Grants and contributions,2079,rural pool grant 2016,ARTLEI,Arts and Leisure,02107,Rural pool grants
http://statistics.data.gov.uk/id/local-authority/16UF,Eden District Council,23/09/2016,152786,7466.26,CUMBRIA WASTE RECYCLING LTD,CUM022,Technical Services Manager,Recycling  - Bring Sites,3601,BS-48,RECYCL,Recycling,03047,Recycling
http://statistics.data.gov.uk/id/local-authority/16UF,Eden District Council,23/09/2016,152787,21243.07,CUMBRIA WASTE RECYCLING LTD,CUM022,Technical Services Manager,Recycling - Garden Waste,3602,GW-05-16/17,RECYCL,Recycling,03047,Recycling
http://statistics.data.gov.uk/id/local-authority/16UF,Eden District Council,23/09/2016,152788,19070.24,CUMBRIA WASTE RECYCLING LTD,CUM022,Technical Services Manager,Recycling - Bag & Box,3600,GB-05-16/17,RECYCL,Recycling,03047,Recycling
http://statistics.data.gov.uk/id/local-authority/16UF,Eden District Council,23/09/2016,152790,1200,REDACTIVE PUBLISHING LIMITED,RED006,Human Resources Manager,Advertising,0050,ONLINE 16 ADDITIONAL JOBS,CENTRA,Central Expenses,00208,Staff Recruitment
http://statistics.data.gov.uk/id/local-authority/16UF,Eden District Council,23/09/2016,152793,2570,CUMBRIA WASTE RECYCLING LTD,CUM022,Technical Services Manager,Garden Waste Skips,2014,GREEN WASTE VARIOUS SITES AUG 16,RECYCL,Recycling,03047,Recycling
http://statistics.data.gov.uk/id/local-authority/16UF,Eden District Council,23/09/2016,152799,616.53,AMEY PLC,TFE001,Technical Services Manager,RC WEEE,3008,RC44,REFCOL,Refuse Collection,03049,Refuse Collection Domestic
http://statistics.data.gov.uk/id/local-authority/16UF,Eden District Council,23/09/2016,152813,1449.48,OYSTER PARTNERSHIP,OYS001,Planning Services,Agency Staff,0003, W/C 05/09/16,PLASER,Planning Services,00304,Planning Services
http://statistics.data.gov.uk/id/local-authority/16UF,Eden District Council,23/09/2016,152815,3418.39,AMEY PLC,TFE001,Technical Services Manager,Refuse Contract Dayworks,3012,RC42,REFCOL,Refuse Collection,03049,Refuse Collection Domestic
http://statistics.data.gov.uk/id/local-authority/16UF,Eden District Council,20/09/2016,152907,949,BUSY BEES CHILDCARE VOUCHERS,BUS004,Commercial Services Manager,Child Care Voucher Scheme,0005,CHILDCARE VOUCHERS SEPT 16,COMSER,Commercial Services,00310,Commercial Services
http://statistics.data.gov.uk/id/local-authority/16UF,Eden District Council,30/09/2016,152886,680,EDS (ELECTRICAL-DATA-SECURITY) LTD,EDS001,Technical Services Manager,Building Maintenance,1000,POOLEY BRIDGE PCS,PUBCON,Public Conveniences,02273,Pooley Bridge Public Convenience
http://statistics.data.gov.uk/id/local-authority/16UF,Eden District Council,30/09/2016,152893,718,CAPITA BUSINESS SERVICES LTD,CAP012,Legal Services Manager,Grants and contributions,2079,TRAINING - ,CRDRPA,Crime & Disorder Reduction Partnership,09091,CDRP
http://statistics.data.gov.uk/id/local-authority/16UF,Eden District Council,30/09/2016,152901,500,LAURA J ENTERTAINMENT,LAU002,Commercial Services Manager,Promotional activity,2084,ENTERTAINMENT SEPTEMBER 16 GIFTED MARKET,MARKET,Markets,02382,Mrkts - Penrith Promotional Space
http://statistics.data.gov.uk/id/local-authority/16UF,Eden District Council,30/09/2016,152922,3000,CUMBRIA COUNTY COUNCIL,CCC002,Communities Director,Promotions,2081,CUMBRIA LEP CONTRIBUTION 2016/17,EDEVPR,Economic Development and Promotion,02003,Economic Promotion - BRRS
http://statistics.data.gov.uk/id/local-authority/16UF,Eden District Council,30/09/2016,152794,4976,Redacted Information,AND015,Director of Finance,Grants and contributions,2079,PLFR GRANT EDC16075,FLOOD,Flood Dec 2015,09318,Flood Dec 2015
http://statistics.data.gov.uk/id/local-authority/16UF,Eden District Council,30/09/2016,152803,5000,Redacted Information,CLA023,Director of Finance,Grants and contributions,2079,PLFRG EDC16021B,FLOOD,Flood Dec 2016,09318,Flood Dec 2015
http://statistics.data.gov.uk/id/local-authority/16UF,Eden District Council,30/09/2016,152804,5000,Redacted Information,ARN004,Director of Finance,Grants and contributions,2079,PLFRG EDC16021E,FLOOD,Flood Dec 2017,09318,Flood Dec 2015
http://statistics.data.gov.uk/id/local-authority/16UF,Eden District Council,30/09/2016,152805,5000,Redacted Information,BRA038,Director of Finance,Grants and contributions,2079,PLFRG EDC16021F,FLOOD,Flood Dec 2018,09318,Flood Dec 2015
http://statistics.data.gov.uk/id/local-authority/16UF,Eden District Council,30/09/2016,152900,1249.64,CUMBRIA WASTE RECYCLING LTD,CUM022,Technical Services Manager,material price fluctuations,3604,F-05-16/17,RECYCL,Recycling,03047,Recycling
http://statistics.data.gov.uk/id/local-authority/16UF,Eden District Council,30/09/2016,152921,1980.56,CUMBRIAN NEWSPAPERS LTD,CUM024,Technical Services Manager,material price fluctuations,3604,SITUATIONS VACANT X 5 INSERTIONS,CENTRA,Central Expenses,00208,Staff Recruitment
http://statistics.data.gov.uk/id/local-authority/16UF,Eden District Council,30/09/2016,152440,938.1,TWOFOLD LIMITED,TWO002,Financial Services Manager,Equipment � maintenance,2001,ANNUAL MAINTENANCE 2016/17,FINSER,Financial Services,00101,Financial Services
http://statistics.data.gov.uk/id/local-authority/16UF,Eden District Council,30/09/2016,152529,11978.12,WSP UK LTD,WSP001,Environmental Services,Professional fees,2045,EDEN HEAT NETWORK FEASIBILITY PHASE 2 PART 1,POLCNL,Pollution Control,03090,Heat Network Funding
http://statistics.data.gov.uk/id/local-authority/16UF,Eden District Council,30/09/2016,152726,2500.5,WANNASEE LTD,WAN001,Commercial Services Manager,Unique payments ****,6006,WANNASEE TICKETS AUG 2016,TAPTIC,Penrith TIC Trading Account,09225,Pen TIC - Wannasee Music Fest Tickets
http://statistics.data.gov.uk/id/local-authority/16UF,Eden District Council,30/09/2016,152764,1137.4,ROYAL MAIL NW,ROY001,Revenue/Benefits Manager,Postages,2054,POSTAGE 10/8/16-6/09/16,REVBEN,Revenue & Benefits,00106,Revenues
http://statistics.data.gov.uk/id/local-authority/16UF,Eden District Council,30/09/2016,152797,9040.8,MCDOUGALL BUILDING CONTRACTORS,MCD002,Environmental Services,Decent Homes Grants,5524,INTERIM PAYMENT ROSELYNN STATION RD ALST,DIREGR,1996 Discretionary Renovation Grants,06034,1996 Discretionary Renovation Grants
http://statistics.data.gov.uk/id/local-authority/16UF,Eden District Council,30/09/2016,152817,6210.19,AMEY PLC,TFE001,Technical Services Manager,Grounds Maintenance Contract Bed Plants,1090,GM92,PARKOS,Parks and Open Spaces,02129,Open spaces
http://statistics.data.gov.uk/id/local-authority/16UF,Eden District Council,30/09/2016,152833,5000,GLENRIDDING PUBLIC HALL,GLE001,Director of Finance,Grants and contributions,2079,PLFRGRANT/EDC16144A,FLOOD,Flood Dec 2016,09318,Flood Dec 2015
http://statistics.data.gov.uk/id/local-authority/16UF,Eden District Council,30/09/2016,152834,750,Redacted Information,SOW011,Director of Finance,Grants and contributions,2079,PLFRGRANT/EDC16112,FLOOD,Flood Dec 2017,09318,Flood Dec 2015
http://statistics.data.gov.uk/id/local-authority/16UF,Eden District Council,30/09/2016,152873,5000,Redacted Information,LON017,Director of Finance,Grants and contributions,2079,PLFRGRANT/EDC16021C,FLOOD,Flood Dec 2018,09318,Flood Dec 2015
http://statistics.data.gov.uk/id/local-authority/16UF,Eden District Council,30/09/2016,152882,2843.27,AMEY PLC,TFE001,Technical Services Manager,FL  Contract,3300,FL - 06/2016,FOOLIG,Footway Lighting,02258,Footway lighting
http://statistics.data.gov.uk/id/local-authority/16UF,Eden District Council,30/09/2016,152887,500,SEFTON COUNCIL,SEF001,Legal Services Manager,"Books, publications",2016,NWLC 2016/17 SUBSCRIPTIONS,LEGSER,Legal Services,00201,Legal & Committee
http://statistics.data.gov.uk/id/local-authority/16UF,Eden District Council,42643,158686,12700,LGPS,LGP001,Financial Services Manager,Additional Pensions,0030,Additional Employers Superannuation Cont,CORPOR,Corporate Costs,01179,Additional Employers Superannuation Cont
http://statistics.data.gov.uk/id/local-authority/16UF,Eden District Council,30/09/2016,158981,500,Redacted Information,XXX001,Director of Finance,Flood Grant Payment,2300,PLFRGRANT/EDC,FLOOD,Flood Dec 2018,09318,Flood Dec 2015
http://statistics.data.gov.uk/id/local-authority/16UF,Eden District Council,42640,158989,2477.6,Barclays Bank,BBB001,Financial Services Manager,Bank charges,2088,Commission,CORPOR,Corporate Costs,01064,Bank Charges
http://statistics.data.gov.uk/id/local-authority/16UF,Eden District Council,42628,159260,1117.82,Santander,SAN001,Financial Services Manager,Bank charges,2088,August Charges,CORPOR,Corporate Costs,01064,Bank Charges
